bitfinex/quotes_BTCUSD_20250105
["timestamp","ask_amount","ask_price","bid_price","bid_amount"]
[1736042049327,0.76852873,98101.0,98100.0,8.54e-05]
[1736042049543,0.76952873,98101.0,98100.0,8.54e-05]
[1736042050687,0.90684371,98101.0,98100.0,8.54e-05]
[1736042051404,0.90584371,98101.0,98100.0,8.54e-05]
[1736042051630,0.90684371,98101.0,98100.0,8.54e-05]
[1736042052055,0.97330028,98101.0,98100.0,8.54e-05]
[1736042055374,0.8359853,98101.0,98100.0,8.54e-05]
[1736042056021,0.8349853,98101.0,98100.0,8.54e-05]
[1736042056468,0.97330028,98101.0,98100.0,8.54e-05]
[1736042057615,0.97230028,98101.0,98100.0,8.54e-05]
[1736042058016,0.97330028,98101.0,98100.0,8.54e-05]
[1736042058329,0.97230028,98101.0,98100.0,8.54e-05]
[1736042058537,0.8359853,98101.0,98100.0,8.54e-05]
[1736042058736,0.8349853,98101.0,98100.0,8.54e-05]
[1736042059267,0.8369853,98101.0,98100.0,8.54e-05]
[1736042059479,0.97230028,98101.0,98100.0,8.54e-05]
[1736042061455,0.97330028,98101.0,98100.0,8.54e-05]
[1736042061598,0.97230028,98101.0,98100.0,8.54e-05]
[1736042062021,0.97230028,98101.0,98100.0,0.0010854]
[1736042063569,0.8349853,98101.0,98100.0,0.0010854]
[1736042064409,0.8349853,98101.0,98100.0,8.54e-05]
[1736042065195,0.8349853,98101.0,98100.0,0.0010854]
[1736042067185,0.97230028,98101.0,98100.0,0.0010854]
[1736042068060,0.97230028,98101.0,98100.0,8.54e-05]
[1736042068407,0.97230028,98101.0,98100.0,0.0010854]
[1736042068567,0.8349853,98101.0,98100.0,0.0010854]
[1736042070726,0.97232131,98101.0,98100.0,0.0010854]
[1736042071662,1.1729634,98101.0,98100.0,0.0010854]
[1736042073823,1.1729634,98101.0,98100.0,8.54e-05]
[1736042074080,0.97232707,98101.0,98100.0,0.0010854]
[1736042074391,0.97232707,98101.0,98100.0,8.54e-05]
[1736042074691,0.97232707,98101.0,98100.0,0.0010854]
[1736042074980,0.97232707,98101.0,98100.0,8.54e-05]
[1736042075186,0.8349853,98101.0,98100.0,8.54e-05]
[1736042075392,0.8349853,98101.0,98100.0,0.0010854]
[1736042075593,0.8349853,98101.0,98100.0,8.54e-05]
[1736042076104,1.17298484,98101.0,98100.0,8.54e-05]
[1736042077081,1.17298484,98101.0,98100.0,0.0010854]
[1736042077284,1.17298484,98101.0,98100.0,8.54e-05]
[1736042077607,1.17298484,98101.0,98100.0,0.0010854]
[1736042080390,1.17298484,98101.0,98100.0,8.54e-05]
[1736042080621,1.17298484,98101.0,98100.0,0.0010854]
[1736042086173,1.35594764,98101.0,98100.0,0.0010854]
[1736042087513,1.17298484,98101.0,98100.0,0.0010854]
[1736042089429,1.35594764,98101.0,98100.0,8.54e-05]
[1736042089716,1.35594764,98101.0,98100.0,0.0010854]
[1736042097792,1.40168834,98101.0,98100.0,0.0010854]
[1736042099570,1.40168834,98101.0,98100.0,8.54e-05]
[1736042099925,1.17298484,98101.0,98100.0,8.54e-05]
[1736042100896,1.35597039,98101.0,98100.0,8.54e-05]
[1736042105899,1.35697039,98101.0,98100.0,8.54e-05]
[1736042107388,1.35897039,98101.0,98100.0,8.54e-05]
[1736042107588,1.35797039,98101.0,98100.0,8.54e-05]
[1736042107788,1.35597039,98101.0,98100.0,8.54e-05]
[1736042107993,1.35697039,98101.0,98100.0,8.54e-05]
[1736042108147,1.35897039,98101.0,98100.0,8.54e-05]
[1736042110172,1.36897039,98101.0,98100.0,8.54e-05]
[1736042113411,1.18598484,98101.0,98100.0,8.54e-05]
[1736042116136,1.10899003,98101.0,98100.0,8.54e-05]
[1736042118967,1.33769353,98101.0,98100.0,8.54e-05]
[1736042120516,1.41649353,98101.0,98100.0,8.54e-05]
[1736042120811,1.41449353,98101.0,98100.0,8.54e-05]
[1736042121022,1.41749353,98101.0,98100.0,8.54e-05]
[1736042121628,1.41649353,98101.0,98100.0,8.54e-05]
[1736042121835,1.41449353,98101.0,98100.0,8.54e-05]
[1736042122045,1.41649353,98101.0,98100.0,8.54e-05]
[1736042124325,1.18779003,98101.0,98100.0,8.54e-05]
[1736042125355,1.18679003,98101.0,98100.0,8.54e-05]
[1736042125770,1.18779003,98101.0,98100.0,8.54e-05]
[1736042126320,1.18679003,98101.0,98100.0,8.54e-05]
[1736042126494,1.18779003,98101.0,98100.0,8.54e-05]
[1736042126926,1.10699003,98101.0,98100.0,8.54e-05]
[1736042127135,1.10599003,98101.0,98100.0,8.54e-05]
[1736042127342,1.10799003,98101.0,98100.0,8.54e-05]
[1736042127736,1.10699003,98101.0,98100.0,8.54e-05]
[1736042127949,1.10799003,98101.0,98100.0,8.54e-05]
[1736042133707,1.10599003,98101.0,98100.0,8.54e-05]
[1736042138877,1.28887236,98101.0,98100.0,8.54e-05]
[1736042141316,1.18887236,98101.0,98100.0,8.54e-05]
[1736042141457,1.18987236,98101.0,98100.0,8.54e-05]
[1736042141657,1.28987236,98101.0,98100.0,8.54e-05]
[1736042143003,1.28887236,98101.0,98100.0,8.54e-05]
[1736042143388,1.28987236,98101.0,98100.0,8.54e-05]
[1736042143604,1.28887236,98101.0,98100.0,8.54e-05]
[1736042150828,0.66799049,98101.0,98100.0,8.54e-05]
[1736042151090,0.76799049,98101.0,98100.0,8.54e-05]
[1736042152557,0.90515236,98101.0,98100.0,8.54e-05]
[1736042154873,0.76799049,98101.0,98100.0,8.54e-05]
[1736042156681,0.76799049,98101.0,98100.0,0.0010854]
[1736042156823,0.90515236,98101.0,98100.0,8.54e-05]
[1736042157233,0.90515236,98101.0,98100.0,0.0010854]
[1736042157777,0.76799049,98101.0,98100.0,0.0010854]
[1736042159332,0.85941352,98101.0,98100.0,0.0010854]
[1736042160488,0.66799049,98101.0,98100.0,8.54e-05]
[1736042160816,0.76799049,98101.0,98100.0,8.54e-05]
[1736042161036,0.76799049,98101.0,98100.0,0.0020854]
[1736042161882,0.76799049,98101.0,98100.0,0.0030854]
[1736042168054,0.76799049,98101.0,98100.0,0.0020854]
[1736042168281,0.76799049,98101.0,98100.0,0.0030854]
[1736042168452,0.76799049,98101.0,98100.0,0.0010854]
[1736042168852,0.76799049,98101.0,98100.0,0.0030854]
[1736042171608,0.76799049,98101.0,98100.0,0.0020854]
[1736042171839,0.76799049,98101.0,98100.0,8.54e-05]
[1736042172185,0.76799049,98101.0,98100.0,0.0020854]
[1736042172369,0.76799049,98101.0,98100.0,8.54e-05]
[1736042172626,0.76799049,98101.0,98100.0,0.0020854]
[1736042172992,0.76799049,98101.0,98100.0,0.0010854]
[1736042173206,0.76799049,98101.0,98100.0,0.0050854]
[1736042174245,0.76799049,98101.0,98100.0,0.0040854]
[1736042174439,0.70153392,98101.0,98100.0,0.0050854]
[1736042176492,0.70153392,98101.0,98100.0,0.0010854]
[1736042176661,0.7679838,98101.0,98100.0,0.0010854]
[1736042176829,0.7679838,98101.0,98100.0,0.0050854]
[1736042177735,0.7679838,98101.0,98100.0,0.0040854]
[1736042177914,0.7679838,98101.0,98100.0,8.54e-05]
[1736042178212,0.7679838,98101.0,98100.0,0.0010854]
[1736042178414,0.6679838,98101.0,98100.0,0.0010854]
[1736042178623,0.7679838,98101.0,98100.0,0.0010854]
[1736042178826,0.7679838,98101.0,98100.0,0.0050854]
[1736042179054,0.6679838,98101.0,98100.0,0.0050854]
[1736042179189,0.7679838,98101.0,98100.0,0.0010854]
[1736042179400,0.6679838,98101.0,98100.0,0.0050854]
[1736042180032,0.5679838,98101.0,98100.0,0.0050854]
[1736042180264,0.07662068,98101.0,98100.0,0.10907172]
[1736042180470,0.07662068,98101.0,98100.0,0.12278049]
[1736042181885,0.07662068,98101.0,98100.0,0.12178049]
[1736042182104,0.07662068,98101.0,98100.0,0.12478049]
[1736042182334,0.07662068,98101.0,98100.0,0.12078049]
[1736042182557,0.07762068,98101.0,98100.0,0.12878049]
[1736042184232,0.07762068,98101.0,98100.0,0.12578049]
[1736042184425,0.07762068,98101.0,98100.0,0.12878049]
[1736042184784,0.07662068,98101.0,98100.0,0.12078049]
[1736042185011,0.07762068,98101.0,98100.0,0.12878049]
[1736042185429,0.07662068,98101.0,98100.0,0.12078049]
[1736042185826,0.07762068,98101.0,98100.0,0.12778049]
[1736042186034,0.07662068,98101.0,98100.0,0.11778049]
[1736042186442,0.07762068,98101.0,98100.0,0.12578049]
[1736042186579,0.07762068,98101.0,98100.0,0.11778049]
[1736042187490,0.07762068,98101.0,98100.0,0.12078049]
[1736042187913,0.07762068,98101.0,98100.0,0.11778049]
[1736042188269,0.07762068,98101.0,98100.0,0.12078049]
[1736042188587,0.07762068,98101.0,98100.0,0.62078049]
[1736042189007,0.07862068,98101.0,98100.0,0.62878049]
[1736042189416,0.07762068,98101.0,98100.0,0.62078049]
[1736042189579,0.07862068,98101.0,98100.0,0.62878049]
[1736042189775,0.07762068,98101.0,98100.0,0.62078049]
[1736042190295,0.07862068,98101.0,98100.0,0.62578049]
[1736042190482,0.07762068,98101.0,98100.0,0.61778049]
[1736042190845,0.07862068,98101.0,98100.0,0.62878049]
[1736042191815,0.07862068,98101.0,98100.0,0.62578049]
[1736042192092,0.07662068,98101.0,98100.0,0.62078049]
[1736042192297,0.07762068,98101.0,98100.0,0.62878049]
[1736042192708,0.07762068,98101.0,98100.0,0.62078049]
[1736042192928,0.07862068,98101.0,98100.0,0.62878049]
[1736042193067,0.07762068,98101.0,98100.0,0.62078049]
[1736042193288,0.07662068,98101.0,98100.0,0.61778049]
[1736042193491,0.07762068,98101.0,98100.0,0.62578049]
[1736042193697,0.07762068,98101.0,98100.0,0.62078049]
[1736042194082,0.07762068,98101.0,98100.0,0.61778049]
[1736042194338,0.07762068,98101.0,98100.0,0.62078049]
[1736042194923,0.07762068,98101.0,98100.0,0.61778049]
[1736042195251,0.07762068,98101.0,98100.0,0.62078049]
[1736042195688,0.07862068,98101.0,98100.0,0.62878049]
[1736042195895,0.07762068,98101.0,98100.0,0.62078049]
[1736042196099,0.07762068,98101.0,98100.0,0.62878049]
[1736042196310,0.07862068,98101.0,98100.0,0.62578049]
[1736042196510,0.07762068,98101.0,98100.0,0.61778049]
[1736042196868,0.07862068,98101.0,98100.0,0.62878049]
[1736042197631,0.07862068,98101.0,98100.0,0.62578049]
[1736042197896,0.07862068,98101.0,98100.0,0.62878049]
[1736042198237,0.07662068,98101.0,98100.0,0.62078049]
[1736042198438,0.07662068,98101.0,98100.0,0.62878049]
[1736042198642,0.07762068,98101.0,98100.0,0.62878049]
[1736042198846,0.07762068,98101.0,98100.0,0.62078049]
[1736042199068,0.07862068,98101.0,98100.0,0.62878049]
[1736042199479,0.07862068,98101.0,98100.0,0.62578049]
[1736042199683,0.07862068,98101.0,98100.0,0.62878049]
[1736042200261,0.07862068,98101.0,98100.0,0.62578049]
[1736042201088,0.07862068,98101.0,98100.0,0.62878049]
[1736042202539,0.07862068,98101.0,98100.0,0.62578049]
[1736042202981,0.07662068,98101.0,98100.0,0.61778049]
[1736042203184,0.07662068,98101.0,98100.0,0.61978049]
[1736042203542,0.07662068,98101.0,98100.0,0.61778049]
[1736042203748,0.07662068,98101.0,98100.0,0.61878049]
[1736042211158,0.07662068,98101.0,98100.0,0.64992814]
[1736042211364,0.07662068,98101.0,98100.0,0.61878049]
[1736042212487,0.07662068,98101.0,98100.0,0.64993856]
[1736042214560,0.07662068,98101.0,98100.0,0.74167379]
[1736042216221,0.07662068,98101.0,98100.0,0.64993856]
[1736042217391,0.07662068,98101.0,98100.0,0.74167379]
[1736042218371,0.07662068,98101.0,98100.0,0.89167379]
[1736042219940,0.07662068,98101.0,98100.0,0.93755613]
[1736042220904,0.15192068,98101.0,98100.0,0.93755613]
[1736042221110,0.15192068,98101.0,98100.0,0.79993856]
[1736042221318,0.15192068,98101.0,98100.0,0.76878049]
[1736042222160,0.15192068,98101.0,98100.0,0.76778049]
[1736042222369,0.15192068,98101.0,98100.0,0.76878049]
[1736042223167,0.15192068,98101.0,98100.0,0.76778049]
[1736042223578,0.15192068,98101.0,98100.0,0.77570049]
[1736042224834,0.15192068,98101.0,98100.0,0.77470049]
[1736042225220,0.15192068,98101.0,98100.0,0.78270049]
[1736042225422,0.15192068,98101.0,98100.0,0.77670049]
[1736042225722,0.15192068,98101.0,98100.0,0.77970049]
[1736042225927,0.15192068,98101.0,98100.0,0.77670049]
[1736042226334,0.15192068,98101.0,98100.0,0.77970049]
[1736042226508,0.15192068,98101.0,98100.0,0.77470049]
[1736042227656,0.15192068,98101.0,98100.0,0.77670049]
[1736042227797,0.15192068,98101.0,98100.0,0.77970049]
[1736042228204,0.07662068,98101.0,98100.0,0.77470049]
[1736042229275,0.07662068,98101.0,98100.0,0.80588624]
[1736042229779,0.07662068,98101.0,98100.0,0.80688624]
[1736042230015,0.07662068,98101.0,98100.0,0.94450381]
[1736042231743,0.07662068,98101.0,98100.0,0.94350381]
[1736042231954,0.07662068,98101.0,98100.0,0.94450381]
[1736042232157,0.07662068,98101.0,98100.0,0.9903403]
[1736042233156,0.07662068,98101.0,98100.0,0.80688624]
[1736042234013,0.07662068,98101.0,98100.0,0.80588624]
[1736042234470,0.07662068,98101.0,98100.0,0.9893403]
[1736042235057,0.07662068,98101.0,98100.0,0.9903403]
[1736042235882,0.07662068,98101.0,98100.0,0.80688624]
[1736042244044,0.07662068,98101.0,98100.0,0.80588624]
[1736042247347,0.07662068,98101.0,98100.0,0.80688624]
[1736042247594,0.07662068,98101.0,98100.0,0.80888624]
[1736042247792,0.07662068,98101.0,98100.0,0.80788624]
[1736042248007,0.07662068,98101.0,98100.0,0.80888624]
[1736042249275,0.0101708,98101.0,98100.0,0.80888624]
[1736042259174,0.0753,98108.0,98107.0,0.203859]
[1736042259373,0.0001708,98110.0,98109.0,0.353854]
[1736042259600,0.0001708,98110.0,98109.0,0.48902607]
[1736042259807,0.0001708,98110.0,98109.0,0.50269721]
[1736042260589,0.0001708,98110.0,98109.0,0.50569721]
[1736042260788,0.0001708,98110.0,98109.0,0.73188902]
[1736042261182,0.0011708,98110.0,98109.0,0.73188902]
[1736042261386,0.0001708,98110.0,98109.0,0.73188902]
[1736042261867,0.0001708,98110.0,98109.0,0.73288902]
[1736042262087,0.0001708,98110.0,98109.0,0.50369721]
[1736042263523,0.0001708,98110.0,98109.0,0.52669721]
[1736042263865,0.0453,98122.0,98120.0,0.203832]
[1736042264094,0.0453,98122.0,98121.0,0.1245614]
[1736042265102,0.0453,98122.0,98121.0,0.15572921]
[1736042265301,0.0782,98125.0,98122.0,0.203827]
[1736042265479,0.0782,98125.0,98124.0,0.10398632]
[1736042265852,0.0782,98125.0,98124.0,0.11762835]
[1736042266838,0.0782,98125.0,98124.0,0.20920817]
[1736042267057,0.0782,98125.0,98124.0,0.21720817]
[1736042267325,0.0782,98125.0,98124.0,0.22020817]
[1736042267749,0.0782,98125.0,98124.0,0.21220817]
[1736042267956,0.0782,98125.0,98124.0,0.12062835]
[1736042268172,0.0782,98125.0,98124.0,0.12162835]
[1736042268695,0.0782,98125.0,98124.0,0.11862835]
[1736042268894,0.1234,98131.0,98125.0,0.203821]
[1736042269094,0.1234,98131.0,98125.0,0.30780732]
[1736042269297,0.1234,98131.0,98125.0,0.32144501]
[1736042271159,0.1234,98131.0,98125.0,0.32244501]
[1736042275588,0.1234,98131.0,98127.0,0.203815]
[1736042275796,0.1234,98131.0,98130.0,0.203811]
[1736042275998,0.1234,98131.0,98130.0,0.30779732]
[1736042276193,0.1234,98131.0,98130.0,0.32142409]
[1736042276919,0.12344948,98131.0,98130.0,0.32142409]
[1736042278115,0.12344948,98131.0,98130.0,0.82142409]
[1736042278317,0.12444948,98131.0,98130.0,0.82142409]
[1736042285746,0.12453488,98131.0,98130.0,0.82142409]
[1736042292181,0.12453488,98131.0,98130.0,0.82834409]
[1736042292706,0.07933488,98131.0,98130.0,0.82834409]
[1736042293540,0.00113488,98131.0,98130.0,0.82834409]
[1736042293777,0.00113488,98131.0,98130.0,0.85952427]
[1736042294098,0.00013488,98131.0,98130.0,0.85952427]
[1736042294546,0.00013488,98131.0,98130.0,0.86052427]
[1736042295555,0.00013488,98131.0,98130.0,0.86152427]
[1736042295753,0.00013488,98131.0,98130.0,0.86052427]
[1736042296035,0.00013488,98131.0,98130.0,0.95505413]
[1736042299184,0.00013488,98131.0,98130.0,0.97805413]
[1736042301865,0.00013488,98131.0,98130.0,1.02392234]
[1736042302862,0.00013488,98131.0,98130.0,0.88652427]
[1736042303804,0.00013488,98131.0,98130.0,0.87960427]
[1736042303984,0.00013488,98131.0,98130.0,0.88652427]
[1736042308589,0.00013488,98131.0,98130.0,1.0697217]
[1736042309948,0.00013488,98131.0,98130.0,0.88652427]
[1736042313948,0.00013488,98131.0,98130.0,0.87960427]
[1736042314083,0.00013488,98131.0,98130.0,0.88652427]
[1736042317785,0.00013488,98131.0,98130.0,0.86352427]
[1736042319781,0.00013488,98131.0,98130.0,1.01352427]
[1736042320261,0.06643631,98135.0,98131.0,0.15]
[1736042320451,0.1125,98140.0,98139.0,0.203792]
[1736042320648,0.1125,98140.0,98139.0,0.3389585]
[1736042320850,0.1125,98140.0,98139.0,0.35256536]
[1736042321996,0.1135,98140.0,98139.0,0.32138518]
[1736042322187,0.1135,98140.0,98139.0,0.35256225]
[1736042322367,0.1135,98140.0,98139.0,0.32138518]
[1736042322592,0.1135,98140.0,98139.0,0.35256207]
[1736042323122,0.1135,98140.0,98139.0,0.35789463]
[1736042323508,0.1135,98140.0,98139.0,0.32671774]
[1736042323648,0.1135,98140.0,98139.0,0.47671774]
[1736042323856,0.1135,98140.0,98139.0,0.51481477]
[1736042325239,0.1135,98140.0,98139.0,0.69805975]
[1736042326239,0.1125,98140.0,98139.0,0.51481477]
[1736042328685,0.0798,98145.0,98141.0,0.203786]
[1736042328980,0.07984946,98145.0,98144.0,0.10398632]
[1736042329179,0.07984946,98145.0,98144.0,0.1229153]
[1736042330540,0.08084946,98145.0,98144.0,0.21450284]
[1736042331038,0.08084946,98145.0,98144.0,0.24567493]
[1736042331443,0.08084946,98145.0,98144.0,0.21450284]
[1736042331680,0.00104946,98145.0,98144.0,0.1540858]
[1736042332040,4.946e-05,98145.0,98144.0,0.1540858]
[1736042332248,0.00104946,98145.0,98144.0,0.1540858]
[1736042332451,0.00204946,98145.0,98144.0,0.1540858]
[1736042332684,4.946e-05,98145.0,98144.0,0.1540858]
[1736042333082,4.946e-05,98145.0,98144.0,0.1550858]
[1736042334026,4.946e-05,98145.0,98144.0,0.29244115]
[1736042334966,4.946e-05,98145.0,98144.0,0.1550858]
[1736042336284,4.946e-05,98145.0,98144.0,0.1239153]
[1736042336687,4.946e-05,98145.0,98144.0,0.15507609]
[1736042336898,4.946e-05,98145.0,98144.0,0.1239153]
[1736042337260,4.946e-05,98145.0,98144.0,0.2739153]
[1736042337466,4.946e-05,98145.0,98144.0,0.44242884]
[1736042338515,0.05063104,98146.0,98145.0,0.37678]
[1736042338719,0.05063104,98146.0,98145.0,0.51192577]
[1736042338872,0.05063104,98146.0,98145.0,0.53081864]
[1736042339694,0.05063104,98146.0,98145.0,0.75987487]
[1736042341094,0.04462622,98146.0,98145.0,0.75987487]
[1736042341838,0.01760605,98146.0,98145.0,0.75987487]
[1736042342041,0.01760605,98146.0,98145.0,0.76587487]
[1736042342196,0.01760605,98146.0,98145.0,0.75664536]
[1736042342400,0.01760605,98146.0,98145.0,0.52758913]
[1736042342602,0.01760605,98146.0,98145.0,0.52558913]
[1736042342804,0.01760605,98146.0,98145.0,0.52758913]
[1736042343438,0.01760605,98146.0,98145.0,0.52558913]
[1736042343643,0.01760605,98146.0,98145.0,0.53058913]
[1736042343958,0.01760605,98146.0,98145.0,0.52558913]
[1736042344357,0.01760605,98146.0,98145.0,0.52958913]
[1736042344595,0.01760605,98146.0,98145.0,0.52558913]
[1736042344752,0.01760605,98146.0,98145.0,0.52758913]
[1736042344995,0.01760605,98146.0,98145.0,0.53258913]
[1736042345136,0.01760605,98146.0,98145.0,0.53058913]
[1736042345640,0.01760605,98146.0,98145.0,0.53258913]
[1736042345889,0.01769145,98146.0,98145.0,0.53258913]
[1736042346237,0.0475,98158.0,98157.0,0.203755]
[1736042346440,0.0475,98158.0,98157.0,0.30774132]
[1736042346641,0.0475,98158.0,98157.0,0.32140048]
[1736042348214,0.0485,98158.0,98157.0,0.32140048]
[1736042348624,0.0485,98158.0,98157.0,0.82140048]
[1736042349832,0.0485,98158.0,98157.0,0.91287023]
[1736042350237,0.0475,98158.0,98157.0,0.91287023]
[1736042350670,0.0475,98158.0,98157.0,0.82240048]
[1736042351281,0.0475,98158.0,98157.0,0.82340048]
[1736042351585,0.0475,98158.0,98157.0,0.92505342]
[1736042355119,0.0475,98158.0,98157.0,0.85445968]
[1736042355323,0.0475,98158.0,98157.0,0.88558376]
[1736042355780,0.0475,98158.0,98157.0,0.85445968]
[1736042355979,0.0475,98158.0,98157.0,0.94592943]
[1736042357245,0.0475,98158.0,98157.0,0.85445968]
[1736042357624,0.0475854,98158.0,98157.0,0.85445968]
[1736042363381,0.0475854,98158.0,98157.0,0.88559838]
[1736042363596,0.0475854,98158.0,98157.0,0.85445968]
[1736042364942,0.0475854,98158.0,98157.0,0.88560239]
[1736042365600,0.0475854,98158.0,98157.0,0.85445968]
[1736042365819,0.1242854,98158.0,98157.0,0.8925261]
[1736042366008,0.1242854,98158.0,98157.0,0.94592943]
[1736042366206,0.1242854,98158.0,98157.0,0.95284943]
[1736042366953,0.1242854,98158.0,98157.0,0.86137968]
[1736042374250,0.1242854,98158.0,98157.0,0.86095196]
[1736042379081,0.1242854,98158.0,98157.0,0.85403196]
[1736042379282,0.1242854,98158.0,98157.0,0.86095196]
[1736042379998,0.1242854,98158.0,98157.0,0.83315595]
[1736042381425,0.1242854,98158.0,98157.0,0.83215595]
[1736042382290,0.12555887,98158.0,98157.0,0.83115595]
[1736042382504,0.12555887,98158.0,98157.0,0.83215595]
[1736042382711,0.12555887,98158.0,98157.0,0.83315595]
[1736042383099,0.12555887,98158.0,98157.0,0.83115595]
[1736042384107,0.1242854,98158.0,98157.0,0.83115595]
[1736042384309,0.12555889,98158.0,98157.0,0.83115595]
[1736042386402,0.1242854,98158.0,98157.0,0.83115595]
[1736042386600,0.12555889,98158.0,98157.0,0.83115595]
[1736042387898,0.12555889,98158.0,98157.0,0.8366364]
[1736042392850,0.1242854,98158.0,98157.0,0.8366364]
[1736042395158,0.1242854,98158.0,98157.0,0.8368072]
[1736042395968,0.12555889,98158.0,98157.0,0.8368072]
[1736042396174,0.1242854,98158.0,98157.0,0.8368072]
[1736042405075,0.1252854,98158.0,98157.0,0.8368072]
[1736042407915,0.1242854,98158.0,98157.0,0.8368072]
[1736042408326,8.54e-05,98158.0,98157.0,0.8368072]
[1736042413145,0.0010854,98158.0,98157.0,0.8368072]
[1736042420444,0.0010854,98158.0,98157.0,0.8598072]
[1736042420619,0.0010854,98158.0,98157.0,0.89100814]
[1736042421558,0.0010854,98158.0,98157.0,1.04100814]
[1736042423323,8.54e-05,98158.0,98157.0,1.04100814]
[1736042423772,8.54e-05,98158.0,98157.0,1.04600814]
[1736042424180,8.54e-05,98158.0,98157.0,1.04800814]
[1736042424744,8.54e-05,98158.0,98157.0,1.04600814]
[1736042424927,8.54e-05,98158.0,98157.0,1.04800814]
[1736042425351,8.54e-05,98158.0,98157.0,1.04300814]
[1736042425761,8.54e-05,98158.0,98157.0,1.04700814]
[1736042430707,8.54e-05,98158.0,98157.0,1.27584529]
[1736042433070,8.54e-05,98158.0,98157.0,1.04700814]
[1736042439488,8.54e-05,98158.0,98157.0,1.04300814]
[1736042440013,8.54e-05,98158.0,98157.0,1.04500814]
[1736042440356,8.54e-05,98158.0,98157.0,1.04700814]
[1736042440868,8.54e-05,98158.0,98157.0,1.04500814]
[1736042441097,8.54e-05,98158.0,98157.0,1.04700814]
[1736042441875,8.54e-05,98158.0,98157.0,1.04300814]
[1736042442075,8.54e-05,98158.0,98157.0,1.04100814]
[1736042442275,8.54e-05,98158.0,98157.0,1.04500814]
[1736042442480,8.54e-05,98158.0,98157.0,1.04100814]
[1736042442919,8.54e-05,98158.0,98157.0,1.04500814]
[1736042443442,8.54e-05,98158.0,98157.0,1.04700814]
[1736042444214,8.54e-05,98158.0,98157.0,1.04500814]
[1736042444667,8.54e-05,98158.0,98157.0,1.04700814]
[1736042444918,8.54e-05,98158.0,98157.0,1.04300814]
[1736042445242,8.54e-05,98158.0,98157.0,1.04700814]
[1736042448609,8.54e-05,98158.0,98157.0,1.04300814]
[1736042448967,8.54e-05,98158.0,98157.0,1.04700814]
[1736042449607,0.077,98170.0,98161.0,0.1]
[1736042449806,0.077,98170.0,98169.0,0.33071632]
[1736042450121,0.077,98170.0,98169.0,0.34982933]
[1736042452088,0.077,98170.0,98169.0,0.84982933]
[1736042452288,0.078,98170.0,98169.0,0.84982933]
[1736042453820,0.078,98170.0,98169.0,0.85674933]
[1736042454410,0.077,98170.0,98169.0,0.85674933]
[1736042454611,0.077,98170.0,98169.0,0.86679659]
[1736042455077,0.0770854,98170.0,98169.0,0.86679659]
[1736042455457,0.0780854,98170.0,98169.0,0.86679659]
[1736042457584,0.0770854,98170.0,98169.0,0.86679659]
[1736042458013,0.0770854,98170.0,98169.0,0.86779659]
[1736042458828,0.0770854,98170.0,98169.0,0.86679659]
[1736042459071,0.0770854,98170.0,98169.0,0.86779659]
[1736042459608,0.0770854,98170.0,98169.0,0.89899281]
[1736042460017,0.0770854,98170.0,98169.0,0.86779659]
[1736042460611,0.0770854,98170.0,98169.0,0.89899313]
[1736042461056,0.0770854,98170.0,98169.0,0.89799313]
[1736042461485,0.0770854,98170.0,98169.0,0.89899313]
[1736042462400,0.0770854,98170.0,98169.0,0.89799313]
[1736042462734,0.0770854,98170.0,98169.0,0.89899313]
[1736042463379,0.0770854,98170.0,98169.0,0.86779659]
[1736042463582,0.0770854,98170.0,98169.0,0.86879659]
[1736042463990,0.0770854,98170.0,98169.0,0.86679659]
[1736042464201,0.0770854,98170.0,98169.0,0.86779659]
[1736042464559,0.0770854,98170.0,98169.0,0.86679659]
[1736042464771,0.0770854,98170.0,98169.0,0.86779659]
[1736042465605,0.0770854,98170.0,98169.0,0.86679659]
[1736042465812,0.0770854,98170.0,98169.0,0.86879659]
[1736042466024,0.0770854,98170.0,98169.0,0.90099689]
[1736042466340,0.0770854,98170.0,98169.0,0.86979659]
[1736042466657,0.0770854,98170.0,98169.0,0.89999885]
[1736042467637,0.0770854,98170.0,98169.0,0.89799885]
[1736042467836,0.0770854,98170.0,98169.0,0.89799917]
[1736042468043,0.0770854,98170.0,98169.0,0.89899917]
[1736042468241,0.0770854,98170.0,98169.0,0.89799917]
[1736042468435,0.0770854,98170.0,98169.0,0.86679659]
[1736042468678,0.0770854,98170.0,98169.0,0.86879659]
[1736042468944,0.0770854,98170.0,98169.0,1.08335755]
[1736042469419,0.0770854,98170.0,98169.0,1.08435755]
[1736042470772,0.0770854,98170.0,98169.0,0.90099845]
[1736042471133,0.0770854,98170.0,98169.0,0.89899845]
[1736042471360,0.0770854,98170.0,98169.0,0.89999845]
[1736042472604,0.0770854,98170.0,98169.0,0.89899845]
[1736042472751,0.0770854,98170.0,98169.0,0.89799845]
[1736042473174,0.0770854,98170.0,98169.0,0.89899845]
[1736042473576,0.0770854,98170.0,98169.0,0.89999845]
[1736042473976,0.0770854,98170.0,98169.0,0.89899845]
[1736042474891,0.0770854,98170.0,98169.0,0.89799845]
[1736042475090,0.0770854,98170.0,98169.0,0.89899845]
[1736042476072,0.0770854,98170.0,98169.0,1.12769748]
[1736042477333,0.0770854,98170.0,98169.0,1.09649562]
[1736042477477,0.0770854,98170.0,98169.0,1.12769761]
[1736042478403,0.0770854,98170.0,98169.0,0.89899858]
[1736042480450,0.0770854,98170.0,98169.0,1.12769761]
[1736042481940,0.0770854,98170.0,98169.0,0.89899858]
[1736042499537,0.0770854,98170.0,98169.0,0.89207858]
[1736042499778,0.0770854,98170.0,98169.0,0.86779659]
[1736042499927,0.0770854,98170.0,98169.0,0.89899296]
[1736042503334,0.0770854,98170.0,98169.0,1.12817126]
[1736042503496,0.07581209,98170.0,98169.0,1.12817126]
[1736042503694,0.07564911,98170.0,98169.0,1.12817126]
[1736042504857,0.07564911,98170.0,98169.0,0.89899296]
[1736042506710,0.07564911,98170.0,98169.0,0.89207296]
[1736042506946,0.07564911,98170.0,98169.0,0.89899296]
[1736042512236,0.07564911,98170.0,98169.0,1.12817126]
[1736042513412,0.07564911,98170.0,98169.0,0.89899296]
[1736042513815,0.07564911,98170.0,98169.0,0.89916376]
[1736042519679,0.07564911,98170.0,98169.0,1.12834206]
[1736042525978,0.07564911,98170.0,98169.0,1.09714569]
[1736042526333,0.07564911,98170.0,98169.0,1.12834357]
[1736042526747,0.07564911,98170.0,98169.0,0.89916527]
[1736042529463,0.07564911,98170.0,98169.0,1.12834357]
[1736042533195,0.07564911,98170.0,98169.0,0.89916527]
[1736042539418,0.07564911,98170.0,98169.0,1.12834357]
[1736042546127,0.07564911,98170.0,98169.0,1.09714569]
[1736042546901,0.07564911,98170.0,98169.0,1.12834795]
[1736042547290,0.07564911,98170.0,98169.0,1.08256726]
[1736042548474,0.07564911,98170.0,98169.0,0.89916965]
[1736042549032,0.07564911,98170.0,98169.0,0.86796739]
[1736042549238,0.07564911,98170.0,98169.0,0.89916989]
[1736042552374,0.07564911,98170.0,98169.0,1.12834819]
[1736042553506,0.07564911,98170.0,98169.0,0.89916989]
[1736042554346,0.07564911,98170.0,98169.0,0.86796739]
[1736042554820,0.07564911,98170.0,98169.0,1.12834759]
[1736042555211,0.07564911,98170.0,98169.0,1.12834725]
[1736042555638,0.07564911,98170.0,98169.0,1.05135602]
[1736042556219,0.07564911,98170.0,98169.0,1.08255736]
[1736042556645,0.07564911,98170.0,98169.0,1.05135602]